bitfinex/quotes_SOLUSD_20241122
["timestamp","ask_amount","ask_price","bid_price","bid_amount"]
[1732316415917,28.39115335,254.61,254.6,7.69119131]
[1732316416104,28.39115335,254.61,254.49,32.364]
[1732316416425,23.776884,254.61,254.6,7.69119131]
[1732316416603,28.38322769,254.61,254.6,7.69119131]
[1732316417439,28.38093188,254.61,254.6,7.69119131]
[1732316420620,4.60404788,254.61,254.6,7.69119131]
[1732316420927,6.0769496,254.72,254.6,7.69119131]
[1732316421105,4.60180965,254.72,254.66,7.69119131]
[1732316421309,4.60180965,254.73,254.66,7.69119131]
[1732316422006,23.776884,254.72,254.66,7.69119131]
[1732316422208,23.776884,254.7,254.66,7.69119131]
[1732316422405,23.776884,254.68,254.66,7.69119131]
[1732316422611,4.60180965,254.67,254.66,7.69119131]
[1732316422826,10.67875925,254.73,254.66,7.69119131]
[1732316423128,4.60180965,254.73,254.66,7.69119131]
[1732316424219,23.776884,254.72,254.66,7.69119131]
[1732316424519,23.776884,254.73,254.66,7.69119131]
[1732316428836,23.776884,254.73,254.69,7.69119131]
[1732316429139,23.776884,254.73,254.69,0.64201862]
[1732316430014,23.776884,254.73,254.71,7.69119131]
[1732316431318,23.776884,254.73,254.61,20.0]
[1732316431520,23.776884,254.73,254.72,7.69119131]
[1732316431719,30.3438,254.86,254.72,7.69119131]
[1732316432037,30.3438,254.86,254.79,7.69119131]
[1732316432413,38.03499131,254.86,254.77,7.69119131]
[1732316433030,30.3438,254.86,254.77,7.69119131]
[1732316433215,38.03499131,254.86,254.77,7.69119131]
[1732316433421,40.53499131,254.86,254.75,7.69119131]
[1732316433625,23.776884,254.83,254.75,7.69119131]
[1732316435330,23.776884,254.85,254.75,7.69119131]
[1732316435534,31.46807531,254.85,254.75,7.69119131]
[1732316436643,23.776884,254.82,254.61,20.0]
[1732316436940,23.776884,254.79,254.71,7.69119131]
[1732316437636,23.776884,254.77,254.71,7.69119131]
[1732316437829,2.87290799,254.76,254.71,7.69119131]
[1732316438030,2.87290799,254.75,254.71,7.69119131]
[1732316438340,2.87290799,254.74,254.71,7.69119131]
[1732316438642,23.776884,254.72,254.71,7.69119131]
[1732316439019,26.64979199,254.72,254.71,7.69119131]
[1732316439938,26.64979199,254.72,254.68,7.69119131]
[1732316440121,23.776884,254.7,254.68,7.69119131]
[1732316440320,26.64979199,254.69,254.68,7.69119131]
[1732316440516,23.776884,254.69,254.68,7.69119131]
[1732316440731,26.65301929,254.69,254.68,7.69119131]
[1732316441753,2.87613529,254.69,254.68,7.69119131]
[1732316442137,16.26814091,254.85,254.68,27.69119131]
[1732316442324,26.65478004,254.84,254.75,7.69119131]
[1732316442528,23.776884,254.82,254.75,7.69119131]
[1732316442841,23.776884,254.8,254.75,7.69119131]
[1732316443027,23.776884,254.78,254.75,7.69119131]
[1732316443225,23.776884,254.76,254.75,7.69119131]
[1732316443543,26.65478004,254.76,254.75,7.69119131]
[1732316446341,2.87789604,254.76,254.75,7.69119131]
[1732316446528,2.87789604,254.76,254.75,27.69119131]
[1732316446943,2.87789604,254.84,254.75,27.69119131]
[1732316447156,2.87789604,254.83,254.79,7.69119131]
[1732316447344,2.87789604,254.82,254.79,0.64453778]
[1732316447532,26.65478004,254.81,254.79,0.64453778]
[1732316447736,26.65478004,254.8,254.79,0.64453778]
[1732316448431,23.776884,254.79,254.78,7.69119131]
[1732316448631,26.66095279,254.79,254.78,7.69119131]
[1732316448837,2.88406879,254.79,254.78,27.69119131]
[1732316452246,23.776884,254.85,254.79,20.0]
[1732316452548,23.776884,254.83,254.82,7.69119131]
[1732316452759,26.66304055,254.83,254.82,7.69119131]
[1732316453663,26.66304055,254.83,254.82,27.69119131]
[1732316459132,26.66567906,254.83,254.82,27.69119131]
[1732316459739,26.66567906,254.83,254.82,7.69119131]
[1732316461133,23.776884,254.83,254.82,7.69119131]
[1732316461340,26.6673931,254.83,254.82,7.69119131]
[1732316462562,26.6673931,254.83,254.73,20.0]
[1732316462752,26.6673931,254.83,254.72,12.808]
[1732316462753,23.776884,254.83,254.82,27.69119131]
[1732316462951,26.66843525,254.83,254.82,27.69119131]
[1732316463457,26.66890271,254.83,254.82,27.69119131]
[1732316468448,26.67034569,254.83,254.82,27.69119131]
[1732316469157,26.17034569,254.83,254.82,27.69119131]
[1732316475072,26.16939408,254.83,254.82,27.69119131]
[1732316475976,2.89251008,254.83,254.82,27.69119131]
[1732316476346,2.89251008,254.83,254.8,30.76476524]
[1732316476552,2.89251008,254.82,254.81,20.0]
[1732316476959,23.776884,254.87,254.81,20.0]
[1732316477171,23.776884,254.85,254.81,20.0]
[1732316477370,23.776884,254.83,254.81,20.0]
[1732316477571,2.89251008,254.82,254.81,20.0]
[1732316478480,23.776884,254.89,254.81,20.0]
[1732316478662,2.89159297,254.88,254.87,7.69119131]
[1732316478966,26.66847697,254.88,254.87,7.69119131]
[1732316479179,26.66847697,254.88,254.87,27.69119131]
[1732316482382,26.66931408,254.88,254.87,27.69119131]
[1732316482563,23.776884,254.87,254.84,7.69119131]
[1732316482874,23.776884,254.85,254.72,12.808]
[1732316483061,2.89243008,254.84,254.83,7.69119131]
[1732316483263,26.66931408,254.84,254.83,7.69119131]
[1732316484166,26.66931408,254.84,254.83,27.69119131]
[1732316486462,23.776884,254.84,254.83,27.69119131]
[1732316486687,26.67266671,254.84,254.83,27.69119131]
[1732316487068,26.67265847,254.84,254.83,27.69119131]
[1732316491287,2.89577447,254.84,254.83,27.69119131]
[1732316492583,26.67265847,254.84,254.83,27.69119131]
[1732316493982,23.776884,254.84,254.83,27.69119131]
[1732316494167,26.67584494,254.84,254.83,27.69119131]
[1732316497479,26.67584494,254.84,254.83,20.0]
[1732316497779,23.776884,254.83,254.8,30.76476524]
[1732316497984,23.776884,254.83,254.82,7.69119131]
[1732316498182,26.67729497,254.83,254.82,27.69119131]
[1732316498381,23.776884,254.83,254.82,27.69119131]
[1732316498579,2.90098589,254.83,254.82,27.69119131]
[1732316500991,8.97793549,254.83,254.82,27.69119131]
[1732316502267,2.90098589,254.83,254.82,27.69119131]
[1732316502472,8.97793549,254.83,254.82,27.69119131]
[1732316503167,2.90098589,254.83,254.82,27.69119131]
[1732316503370,8.97793549,254.83,254.82,27.69119131]
[1732316505088,2.90098589,254.83,254.82,20.0]
[1732316505296,8.97793549,254.83,254.82,7.69119131]
[1732316505471,8.97793549,254.83,254.82,27.69119131]
[1732316505673,6.09442775,254.87,254.83,20.0]
[1732316505876,12.14259891,254.92,254.86,7.69119131]
[1732316506077,24.18175056,254.94,254.8,63.96016524]
[1732316506078,12.14259891,254.94,254.92,20.0]
[1732316506295,12.14259891,254.95,254.93,7.69119131]
[1732316506880,26.86931346,254.98,254.93,7.69119131]
[1732316506881,12.14259891,254.96,254.93,7.69119131]
[1732316507095,12.14259891,254.96,254.95,7.69119131]
[1732316508104,12.14259891,254.96,254.95,27.69119131]
[1732316508400,12.14259891,254.99,254.96,20.0]
[1732316508695,12.14259891,255.0,254.98,7.69119131]
[1732316509399,12.14259891,255.01,254.84,20.0]
[1732316509697,23.776884,255.0,254.99,7.69119131]
[1732316510201,23.776884,255.0,254.99,27.69119131]
[1732316510372,12.14259891,255.03,255.0,20.0]
[1732316510575,12.14259891,255.06,255.02,7.69119131]
[1732316510796,12.14259891,255.07,255.04,7.69119131]
[1732316510980,12.14259891,255.07,255.06,7.69119131]
[1732316511179,12.14259891,255.09,255.06,7.69119131]
[1732316511686,23.776884,255.08,255.06,7.69119131]
[1732316511889,14.82588472,255.09,255.0,20.0]
[1732316511890,12.14259891,255.09,255.0,20.0]
[1732316512090,12.14259891,255.09,255.06,7.69119131]
[1732316512277,12.14259891,255.1,255.06,7.69119131]
[1732316512974,12.14259891,255.1,254.96,20.0]
[1732316513174,14.64259891,255.1,254.92,20.0]
[1732316513374,14.82393794,255.09,255.02,7.69119131]
[1732316513575,12.14259891,255.09,255.02,7.69119131]
[1732316513796,12.14259891,255.07,255.02,7.69119131]
[1732316514003,23.776884,255.06,255.02,7.69119131]
[1732316514377,35.91948291,255.06,255.0,7.69119131]
[1732316515182,35.91948291,255.06,254.98,7.69119131]
[1732316515378,23.776884,255.04,254.98,7.69119131]
[1732316515600,23.776884,255.04,254.96,7.69119131]
[1732316515601,12.14259891,255.01,254.96,7.69119131]
[1732316515806,23.776884,255.0,254.96,7.69119131]
[1732316516503,23.776884,255.0,254.98,7.69119131]
[1732316516685,23.776884,255.0,254.97,7.69119131]
[1732316517507,23.776884,255.0,254.86,20.0]
[1732316517684,23.776884,254.98,254.94,7.69119131]
[1732316517997,23.776884,254.96,254.94,7.69119131]
[1732316518184,2.89080028,254.95,254.94,7.69119131]
[1732316518386,26.66768428,254.95,254.94,7.69119131]
[1732316518989,23.776884,254.94,254.86,20.0]
[1732316519198,23.776884,254.94,254.93,27.69119131]
[1732316519389,26.66691018,254.94,254.93,27.69119131]
[1732316520503,2.89002618,254.94,254.93,58.45595655]
[1732316520715,2.890163,254.94,254.93,58.45595655]
[1732316521213,2.89021291,255.07,254.94,20.0]
[1732316521396,2.89023942,255.06,255.0,7.69119131]
[1732316521600,2.89023942,255.05,255.0,7.69119131]
[1732316521792,23.776884,255.03,255.0,7.69119131]
[1732316522012,23.776884,255.01,255.0,7.69119131]
[1732316522197,26.66712342,255.01,255.0,7.69119131]
[1732316523610,23.776884,255.01,255.0,7.69119131]
[1732316523795,26.66660931,255.01,255.0,7.69119131]
[1732316524005,26.66660931,255.01,255.0,6.70968293]
[1732316524214,26.66660931,255.01,254.86,20.0]
[1732316524521,26.66660931,255.0,254.99,20.0]
[1732316525314,26.66660931,255.0,254.96,7.69119131]
[1732316525507,26.66660931,254.99,254.85,32.1241]
[1732316525716,23.776884,254.97,254.93,7.69119131]
[1732316526015,23.776884,254.95,254.93,7.69119131]
[1732316526194,26.66660931,254.94,254.93,7.69119131]
[1732316526696,26.66660931,254.94,254.93,27.69119131]
[1732316527015,23.776884,254.93,254.91,20.0]
[1732316527199,26.66660931,254.92,254.9,7.69119131]
[1732316527398,2.88972531,254.91,254.9,7.69119131]
[1732316527601,26.66660931,254.91,254.9,7.69119131]
[1732316528503,26.66660931,254.91,254.9,27.69119131]
[1732316531618,26.66582612,254.91,254.9,27.69119131]
[1732316531998,2.88894212,254.91,254.9,27.69119131]
[1732316533129,56.99789891,255.05,254.91,20.0]
[1732316533423,44.8553,255.05,255.0,7.69119131]
[1732316534125,12.14259891,255.07,255.04,7.69119131]
[1732316534299,12.14259891,255.08,255.04,7.69119131]
[1732316535123,12.14259891,255.09,255.06,7.69119131]
[1732316535302,12.14259891,255.12,255.08,7.69119131]
[1732316535714,12.14259891,255.13,255.1,7.69119131]
[1732316535914,12.14259891,255.14,255.1,7.69119131]
[1732316536143,43.88189891,255.16,255.1,7.69119131]
[1732316536929,31.7393,255.16,255.1,7.69119131]
[1732316538039,23.776884,255.15,255.1,7.69119131]
[1732316538416,23.776884,255.15,254.97,20.0]
[1732316538719,23.776884,255.15,255.05,20.0]
[1732316538720,23.776884,255.12,255.05,20.0]
[1732316539243,23.776884,255.12,255.02,7.69119131]
[1732316539244,7.69119131,255.11,255.02,7.69119131]
[1732316539530,23.776884,255.09,254.96,31.9495]
[1732316539721,23.776884,255.09,254.99,7.69119131]
[1732316540334,23.776884,255.09,255.01,7.69119131]
[1732316541328,23.776884,255.09,255.03,7.69119131]
[1732316541533,23.776884,255.11,254.93,30.76476524]
[1732316541713,35.91948291,255.11,255.03,7.69119131]
[1732316542032,23.776884,255.11,255.03,7.69119131]
[1732316542208,35.91948291,255.11,255.03,7.69119131]
[1732316543129,2.67635489,255.1,255.07,7.69119131]
[1732316543338,24.18175056,255.12,255.07,7.69119131]
[1732316543520,12.14259891,255.14,255.07,7.69119131]
[1732316543713,12.14259891,255.15,255.07,7.69119131]
[1732316544033,14.78814788,255.15,255.07,7.69119131]
[1732316544221,23.776884,255.14,255.07,7.69119131]
[1732316545334,23.776884,255.12,255.07,7.69119131]
[1732316545530,23.776884,255.14,255.07,7.69119131]
[1732316545531,23.776884,255.1,255.07,7.69119131]
[1732316545834,2.89325063,255.09,255.07,7.69119131]
[1732316546130,26.67013463,255.08,255.07,7.69119131]
[1732316549215,2.89325063,255.08,255.07,7.69119131]
[1732316549526,23.776884,255.15,255.08,20.0]
[1732316549715,23.776884,255.13,255.08,20.0]
[1732316549916,2.89655659,255.12,255.08,20.0]
[1732316550229,26.67344059,255.11,255.08,20.0]
[1732316550438,2.89655659,255.1,255.08,20.0]
[1732316550617,39.43049131,255.16,255.05,20.0]
[1732316550618,23.776884,255.09,255.05,20.0]
[1732316550819,23.776884,255.09,254.93,30.76476524]
[1732316550820,23.776884,255.07,255.03,7.69119131]
[1732316551030,23.776884,255.05,255.03,7.69119131]
[1732316551339,2.89655659,255.04,255.03,7.69119131]
[1732316551515,26.67344059,255.04,255.03,7.69119131]
[1732316552037,26.67344059,255.04,255.01,7.69119131]
[1732316552214,26.67344059,255.03,255.01,7.69119131]
[1732316552415,26.67344059,255.02,255.01,7.69119131]
[1732316552611,23.776884,255.01,254.89,42.9699]
[1732316552832,2.5,255.1,254.98,7.69119131]
[1732316552833,2.89655659,255.0,254.98,7.69119131]
[1732316553030,2.89655659,254.99,254.98,7.69119131]
[1732316553912,2.89655659,254.99,254.98,27.69119131]
[1732316562669,2.89730995,254.99,254.98,27.69119131]
[1732316563752,12.14259891,255.11,255.01,20.0]
[1732316563952,12.14259891,255.12,255.1,7.69119131]
[1732316564270,12.14259891,255.15,255.11,7.69119131]
[1732316564431,12.14259891,255.17,255.14,7.69119131]
[1732316564631,12.14259891,255.18,255.14,7.69119131]
[1732316565054,12.14259891,255.2,255.16,7.69119131]
[1732316565262,12.14259891,255.2,255.18,7.69119131]
[1732316565561,12.14259891,255.24,255.19,20.0]
[1732316565759,12.14259891,255.24,255.22,7.69119131]
[1732316566134,12.14259891,255.25,255.22,7.69119131]
[1732316566447,12.14259891,255.26,255.22,7.69119131]
[1732316566759,23.776884,255.25,255.22,7.69119131]
[1732316567231,23.776884,255.26,255.22,7.69119131]
[1732316567852,31.46807531,255.26,255.01,20.0]
[1732316568058,35.91948291,255.24,255.17,20.0]
[1732316568360,23.776884,255.24,255.17,20.0]
[1732316568659,2.5,255.25,255.17,20.0]
[1732316568660,26.276884,255.25,255.17,20.0]
[1732316570154,26.276884,255.25,255.07,20.0]
[1732316570458,33.96807531,255.25,255.16,7.69119131]
[1732316571262,23.776884,255.22,255.14,7.69119131]
[1732316572963,23.776884,255.2,255.13,20.0]
[1732316573145,23.776884,255.18,255.0,44.427]
[1732316573338,23.776884,255.18,255.11,20.0]
[1732316573643,23.776884,255.18,255.0,44.427]
[1732316573952,55.508484,255.18,255.0,44.427]
[1732316574136,55.508484,255.18,255.09,7.69119131]
[1732316574337,23.776884,255.16,255.09,7.69119131]
[1732316575060,23.776884,255.17,255.1,20.0]
[1732316576243,23.776884,255.17,255.11,7.69119131]
[1732316576640,12.14259891,255.22,255.16,20.0]
[1732316576848,12.14259891,255.23,255.16,20.0]
[1732316577062,14.79109924,255.23,255.17,7.69119131]
[1732316577256,7.69119131,255.18,255.0,44.427]
[1732316577465,31.1438,255.12,255.02,7.69119131]
[1732316577757,31.1438,255.12,255.04,7.69119131]
[1732316577966,23.776884,255.11,255.04,7.69119131]
[1732316578167,23.776884,255.11,255.02,7.69119131]
[1732316578465,23.776884,255.11,255.0,7.69119131]
[1732316578672,23.776884,255.11,255.02,7.69119131]
[1732316579640,26.276884,255.11,255.02,7.69119131]
[1732316580642,23.776884,255.11,255.02,7.69119131]
[1732316581841,31.1438,255.12,255.06,7.69119131]
[1732316582662,31.1438,255.12,255.06,11.95824688]
[1732316583563,23.776884,255.11,255.06,11.95824688]
[1732316586876,12.7837,255.13,254.93,56.21594688]
[1732316586877,12.14259891,255.17,255.1,11.95824688]
[1732316587171,55.73405056,255.19,255.1,11.95824688]
[1732316587172,12.14259891,255.14,255.1,11.95824688]
[1732316587341,12.14259891,255.18,255.11,20.0]
[1732316587543,14.76132641,255.18,255.11,20.0]
[1732316587851,12.14259891,255.18,255.11,20.0]
[1732316588257,23.776884,255.18,255.11,20.0]
[1732316590471,23.776884,255.18,255.12,11.95824688]
[1732316594585,23.776884,255.2,255.12,11.95824688]
[1732316595077,23.776884,255.21,255.13,20.0]
[1732316595275,35.91948291,255.21,255.13,20.0]
[1732316597766,35.91948291,255.21,255.12,11.95824688]
[1732316598154,12.14259891,255.22,255.14,11.95824688]
[1732316598364,12.14259891,255.23,255.2,11.95824688]
[1732316598569,12.14259891,255.27,255.2,11.95824688]
[1732316599056,12.14259891,255.28,255.2,11.95824688]
[1732316599405,24.10084579,255.29,255.2,11.95824688]
[1732316599578,23.776884,255.28,255.2,11.95824688]
[1732316601771,11.95824688,255.27,255.2,11.95824688]
[1732316601982,23.776884,255.24,255.16,11.95824688]
[1732316602478,11.95824688,255.25,255.06,33.0386]
[1732316602479,11.95824688,255.19,255.06,33.0386]
[1732316602656,31.42890984,255.18,255.09,7.65202584]
[1732316603680,23.776884,255.15,255.09,7.65202584]
[1732316603855,23.776884,255.15,255.07,7.65202584]
[1732316604875,23.776884,255.15,255.08,11.95734713]
[1732316608270,23.776884,255.17,255.1,11.95734713]
[1732316608472,23.776884,255.17,255.08,11.95734713]
[1732316608658,11.95734713,255.14,255.04,11.95734713]
[1732316608859,23.776884,255.13,255.04,11.95734713]
[1732316610155,23.776884,255.13,255.06,11.95734713]
[1732316612082,23.776884,255.13,255.04,11.95734713]
[1732316612290,11.95734713,255.08,254.95,32.2688]
[1732316612581,23.776884,255.07,255.04,11.95734713]
[1732316612757,23.776884,255.08,255.04,11.95734713]
[1732316612961,23.776884,255.1,255.06,11.95734713]
[1732316613173,23.776884,255.11,255.06,11.95734713]
[1732316613587,23.776884,255.12,255.08,11.95734713]
[1732316613791,23.776884,255.14,255.1,11.95734713]
[1732316613964,35.91948291,255.15,255.1,11.95734713]
[1732316614165,35.91948291,255.15,255.08,11.95734713]
[1732316615086,35.91948291,255.15,255.07,11.95734713]
[1732316615283,23.776884,255.13,255.07,11.95734713]
[1732316615768,23.776884,255.13,255.11,11.95734713]
[1732316615966,12.14259891,255.15,255.11,11.95734713]
[1732316616166,12.14259891,255.17,255.13,11.95734713]
[1732316616365,12.14259891,255.19,255.15,11.95734713]
[1732316616573,12.14259891,255.21,255.18,11.95734713]
[1732316616772,12.14259891,255.26,255.21,11.95734713]
[1732316617479,12.14259891,255.27,255.21,11.95734713]
[1732316617684,11.95734713,255.24,255.15,11.95734713]
[1732316617979,23.776884,255.21,255.15,11.95734713]
[1732316618167,23.776884,255.21,255.13,11.95734713]
[1732316618367,35.91948291,255.21,255.13,11.95734713]
[1732316618581,14.76206828,255.2,255.13,11.95734713]
[1732316618887,23.776884,255.18,255.11,11.95734713]
[1732316619587,35.91948291,255.18,255.11,11.95734713]
[1732316620792,23.776884,255.18,255.11,11.95734713]
[1732316621275,35.91948291,255.18,255.11,11.95734713]
[1732316621470,14.76300421,255.17,255.11,11.95734713]
[1732316621675,23.776884,255.16,255.12,20.0]
[1732316621979,23.776884,255.17,255.12,20.0]
[1732316622689,23.776884,255.17,255.11,11.95734713]
[1732316623191,23.776884,255.17,255.12,20.0]
[1732316623769,23.776884,255.15,255.05,11.95734713]
[1732316623976,23.776884,255.13,255.03,11.95734713]
[1732316624196,23.776884,255.11,255.03,11.95734713]
[1732316625208,23.776884,255.11,255.07,11.95734713]
[1732316625508,23.776884,255.14,255.1,20.0]
[1732316625685,23.776884,255.12,255.11,31.95734713]
[1732316626086,6.08424174,255.15,255.12,20.0]
[1732316626402,6.08424174,255.16,255.14,11.95734713]
[1732316626609,6.08424174,255.17,255.14,11.95734713]
[1732316626980,6.08424174,255.17,255.15,20.0]
[1732316627408,6.08424174,255.17,255.06,11.95734713]
[1732316627409,23.776884,255.16,255.13,20.0]
[1732316627699,23.776884,255.16,255.12,11.95734713]
[1732316627700,23.776884,255.16,255.14,11.95734713]
[1732316628008,29.86112574,255.16,255.15,20.0]
[1732316628197,23.776884,255.16,255.15,20.0]
[1732316628677,23.776884,255.16,255.13,20.0]
[1732316629081,29.86112574,255.16,255.13,20.0]
[1732316629387,29.86112574,255.16,255.15,20.0]
[1732316629703,23.776884,255.16,255.15,20.0]
[1732316630016,6.08424174,255.18,255.15,20.0]
[1732316630206,6.08424174,255.22,255.17,20.0]
[1732316630587,6.08424174,255.23,255.17,20.0]
[1732316631385,23.776884,255.22,255.17,20.0]
[1732316631991,29.86112574,255.23,255.21,20.0]
[1732316633188,29.86112574,255.23,255.2,11.95734713]
[1732316634190,23.776884,255.21,255.2,31.95734713]
[1732316634694,23.776884,255.21,255.2,20.0]
[1732316634901,23.776884,255.21,255.14,11.95734713]
[1732316635103,23.776884,255.18,255.14,11.95734713]
[1732316635501,29.86112574,255.18,255.12,11.95734713]
[1732316636197,23.776884,255.16,255.12,11.95734713]
[1732316636585,23.776884,255.16,255.13,20.0]
[1732316637483,23.776884,255.16,255.12,11.95734713]
[1732316637797,23.776884,255.16,255.06,32.0536]
[1732316637798,23.776884,255.16,255.1,11.95734713]
[1732316638000,29.86112574,255.16,255.1,11.95734713]
[1732316638593,29.86112574,255.14,255.1,11.95734713]
[1732316638795,29.86112574,255.14,255.11,20.0]
[1732316638996,6.08424174,255.14,255.11,20.0]
[1732316639302,23.776884,255.13,255.12,11.95734713]
[1732316639502,23.776884,255.13,255.12,31.95734713]
[1732316639814,6.08424174,255.17,255.13,20.0]
[1732316639991,6.08424174,255.17,255.15,11.95734713]
[1732316640191,6.08424174,255.18,255.15,11.95734713]
[1732316640417,6.08424174,255.18,255.17,11.95734713]
[1732316640884,23.776884,255.18,255.17,11.95734713]
[1732316642496,23.776884,255.19,255.15,11.95734713]
[1732316642793,29.86112574,255.18,255.17,11.95734713]
[1732316643094,23.776884,255.18,255.17,11.95734713]
[1732316643917,6.08424174,255.21,255.17,11.95734713]
[1732316644091,6.08424174,255.23,255.2,10.97722403]
[1732316645385,23.776884,255.23,255.2,10.97722403]
[1732316646415,23.776884,255.24,255.2,10.97722403]
[1732316646994,29.86112574,255.24,255.2,10.97722403]
[1732316647895,23.776884,255.24,255.2,10.97722403]
[1732316648791,23.776884,255.22,255.16,11.95734713]
[1732316648994,29.86112574,255.21,255.16,11.95734713]
[1732316649304,23.776884,255.21,255.16,11.95734713]
[1732316649497,29.86112574,255.21,255.16,11.95734713]
[1732316651020,23.776884,255.21,255.16,11.95734713]
[1732316651400,29.86112574,255.21,255.16,11.95734713]
[1732316651616,23.776884,255.21,255.16,11.95734713]
[1732316652115,24.09994604,255.25,255.16,11.95734713]
[1732316652116,29.86112574,255.22,255.16,11.95734713]
[1732316652619,29.86112574,255.22,255.14,11.95734713]
[1732316653896,6.08424174,255.22,255.18,11.95734713]
[1732316654096,6.08424174,255.23,255.21,31.95734713]
[1732316654294,6.08424174,255.25,255.22,31.95734713]
[1732316654515,6.08424174,255.26,255.18,30.0379]
[1732316654720,6.08424174,255.26,255.23,11.95734713]
[1732316654898,6.08424174,255.27,255.23,11.95734713]
[1732316655527,23.776884,255.26,255.23,11.95734713]
[1732316657416,23.776884,255.26,255.21,11.95734713]
[1732316657612,29.86112574,255.27,255.23,11.95734713]
[1732316659121,6.08413558,255.24,255.15,11.95734713]
[1732316659464,6.08413558,255.24,255.17,11.95734713]
[1732316659465,23.776884,255.21,255.17,11.95734713]
[1732316660125,23.776884,255.21,255.19,11.95734713]
[1732316660299,23.776884,255.22,255.19,11.95734713]
[1732316661015,23.776884,255.23,255.19,11.95734713]
[1732316661522,29.86070019,255.23,255.19,11.95734713]
[1732316664031,23.776884,255.21,255.19,11.95734713]
[1732316664410,29.86070019,255.21,255.19,11.95734713]
[1732316665219,29.86070019,255.21,255.2,20.0]
[1732316666303,23.776884,255.21,255.2,20.0]
[1732316666521,29.86070019,255.21,255.2,20.0]
[1732316666729,23.776884,255.21,255.19,11.95734713]
[1732316667829,29.86070019,255.21,255.19,11.95734713]
[1732316668716,29.86070019,255.21,255.2,27.64492509]
[1732316669429,6.08381619,255.21,255.1,31.8113]
[1732316669634,12.14259891,255.24,255.1,31.8113]
[1732316669635,6.08381619,255.2,255.16,7.64492509]
[1732316669842,6.08381619,255.2,255.1,31.8113]
[1732316670129,6.08381619,255.2,255.16,7.64492509]
[1732316670620,6.08381619,255.2,255.17,20.0]
[1732316670621,23.776884,255.19,255.17,20.0]
[1732316671330,29.86070019,255.19,255.13,7.64492509]
[1732316671636,23.776884,255.17,255.14,20.0]
[1732316671839,23.776884,255.17,255.15,7.64492509]
[1732316672045,23.776884,255.17,255.16,20.0]
[1732316672841,6.08381619,255.2,255.16,20.0]
[1732316673042,6.08381619,255.22,255.2,20.0]
[1732316673231,6.08381619,255.22,255.21,27.64492509]
[1732316673927,29.86070019,255.22,255.21,27.64492509]
[1732316674122,6.08381619,255.24,255.21,27.64492509]
[1732316674429,6.08381619,255.26,255.24,20.0]
[1732316674747,6.08381619,255.26,255.25,31.93831589]
[1732316675330,6.08381619,255.26,255.1,44.3202]
[1732316675532,29.87705147,255.21,255.1,44.3202]
[1732316675731,23.776884,255.24,255.1,44.3202]
[1732316675732,23.776884,255.19,255.17,11.93831589]
[1732316676246,6.10016747,255.21,255.17,11.93831589]
[1732316676547,23.776884,255.2,255.19,31.93831589]
[1732316676924,23.276884,255.2,255.19,20.0]
[1732316677141,23.276884,255.2,255.17,11.93831589]
[1732316677449,29.37705147,255.2,255.17,11.93831589]
[1732316677651,29.37705147,255.2,255.19,11.93831589]
[1732316677947,29.37705147,255.2,255.1,44.3202]
[1732316677948,12.14259891,255.22,255.15,11.93831589]
[1732316678125,6.10341023,255.19,255.15,11.93831589]
[1732316678550,6.10341023,255.18,255.16,20.0]
[1732316679049,23.776884,255.17,255.16,20.0]
[1732316679224,29.88029423,255.17,255.16,20.0]
[1732316680027,29.88029423,255.17,255.13,11.93831589]
[1732316680248,23.776884,255.14,255.11,11.93831589]
[1732316681225,23.776884,255.14,255.13,31.93831589]
[1732316681961,6.10341023,255.15,255.13,31.93831589]
[1732316682126,6.10341023,255.16,255.14,20.0]
[1732316682442,6.10341023,255.16,255.15,11.93831589]
[1732316682648,6.10341023,255.16,255.15,31.93831589]
[1732316683636,6.10341023,255.18,255.16,20.0]
[1732316683831,6.10341023,255.18,255.17,31.93831589]
[1732316684037,6.10341023,255.2,255.18,20.0]
[1732316684240,6.10341023,255.21,255.2,20.0]
[1732316684437,6.10341023,255.21,255.2,31.93831589]
[1732316685450,29.88029423,255.21,255.2,20.0]
[1732316685663,12.14259891,255.23,255.18,11.93831589]
[1732316685664,23.776884,255.2,255.19,20.0]
[1732316685854,29.88227523,255.2,255.19,20.0]
[1732316686349,29.88243868,255.2,255.19,20.0]
[1732316687053,23.776884,255.2,255.19,20.0]
[1732316688653,35.91948291,255.2,255.19,20.0]
[1732316688849,23.776884,255.2,255.19,20.0]
[1732316689055,35.91948291,255.2,255.19,20.0]